bitfinex/quotes_ETHUSD_20250810
["timestamp","ask_amount","ask_price","bid_price","bid_amount"]
[1754792479175,0.28816208,4288.6,4287.9,0.1168]
[1754792479176,3.785,4288.5,4287.9,0.1168]
[1754792479878,4.82995316,4288.5,4287.9,0.1168]
[1754792480060,0.8066,4288.4,4287.9,0.1168]
[1754792480262,2.33199375,4288.2,4287.9,0.1168]
[1754792480457,2.33199375,4288.2,4287.8,0.001]
[1754792480458,0.01169767,4288.1,4287.8,0.001]
[1754792480778,3.13863631,4288.1,4287.8,0.001]
[1754792480983,1.13214363,4288.0,4287.8,0.001]
[1754792481575,0.4598,4287.9,4287.8,0.001]
[1754792481782,2.79194393,4287.9,4287.8,0.001]
[1754792482181,0.4598,4287.9,4287.8,0.001]
[1754792482554,0.8066,4287.9,4287.8,0.001]
[1754792482759,3.49685004,4287.9,4287.8,0.001]
[1754792482993,3.61365004,4287.9,4287.8,0.001]
[1754792486388,7.05085004,4287.9,4287.8,0.001]
[1754792486759,7.39765004,4287.9,4287.8,0.001]
[1754792488789,3.61365004,4287.9,4287.8,0.001]
[1754792488990,7.05085004,4287.9,4287.8,0.001]
[1754792490662,3.26685004,4287.9,4287.8,0.001]
[1754792490882,7.04885004,4287.9,4287.8,0.001]
[1754792493100,7.04785004,4287.9,4287.8,0.001]
[1754792494917,6.58805004,4287.9,4287.8,0.001]
[1754792495694,2.80705004,4287.9,4287.8,0.001]
[1754792495889,6.58705004,4287.9,4287.8,0.001]
[1754792496894,2.80705004,4287.9,4287.8,0.001]
[1754792497089,6.58605004,4287.9,4287.8,0.001]
[1754792497599,0.1168,4287.9,4287.8,0.8997]
[1754792497916,3.8968,4287.9,4287.8,0.001]
[1754792498434,3.78,4287.9,4287.8,0.001]
[1754792498815,3.78,4287.9,4287.8,0.4412]
[1754792499835,3.78,4287.9,4287.8,0.8997]
[1754792500130,3.778,4287.9,4287.8,0.8997]
[1754792500529,0.1168,4288.3,4287.8,0.8997]
[1754792500730,3.778,4288.2,4288.0,2.33207731]
[1754792500930,3.778,4288.1,4287.8,0.001]
[1754792501233,3.778,4288.2,4288.0,0.1168]
[1754792501435,3.777,4288.2,4288.1,0.4402]
[1754792501644,2.33182082,4288.5,4288.1,0.4402]
[1754792502145,3.777,4288.4,4288.1,0.4402]
[1754792502853,6.10888768,4288.4,4288.0,0.1168]
[1754792503050,6.10888768,4288.4,4287.8,0.001]
[1754792503051,0.4598,4288.3,4287.8,0.001]
[1754792503214,0.1168,4288.0,4287.8,0.001]
[1754792503414,3.8938,4288.0,4287.8,0.001]
[1754792504166,2.79194393,4287.9,4287.8,0.001]
[1754792504313,3.69372288,4287.9,4287.8,0.001]
[1754792504834,4.04052288,4287.9,4287.8,0.001]
[1754792506219,7.04052288,4287.9,4287.8,0.001]
[1754792507422,7.53785017,4287.9,4287.8,0.001]
[1754792508629,8.08785017,4287.9,4287.8,0.001]
[1754792509355,7.74105017,4287.9,4287.8,0.001]
[1754792509748,7.28125017,4287.9,4287.8,0.001]
[1754792509957,11.05525017,4287.9,4287.8,0.001]
[1754792511026,11.05425017,4287.9,4287.8,0.001]
[1754792511226,7.28125017,4287.9,4287.8,0.001]
[1754792511465,11.05425017,4287.9,4287.8,0.001]
[1754792511982,11.52605017,4287.9,4287.8,0.001]
[1754792512126,11.87285017,4287.9,4287.8,0.001]
[1754792512923,11.52605017,4287.9,4287.8,0.001]
[1754792514727,11.87285017,4287.9,4287.8,0.001]
[1754792515035,11.52605017,4287.9,4287.8,0.001]
[1754792515350,11.05425017,4287.9,4287.8,0.001]
[1754792515547,11.52605017,4287.9,4287.8,0.001]
[1754792515865,11.05425017,4287.9,4287.8,0.001]
[1754792516628,7.28125017,4287.9,4287.8,0.001]
[1754792516829,11.05225017,4287.9,4287.8,0.001]
[1754792517376,11.52405017,4287.9,4287.8,0.001]
[1754792518081,11.05225017,4287.9,4287.8,0.001]
[1754792518269,10.55492288,4287.9,4287.8,0.001]
[1754792518978,10.73025356,4287.9,4287.8,0.001]
[1754792520450,6.95925356,4287.9,4287.8,0.001]
[1754792520650,10.72825356,4287.9,4287.8,0.001]
[1754792521678,27.06620326,4287.9,4287.8,0.001]
[1754792523681,27.68585104,4287.9,4287.8,0.001]
[1754792523890,23.51238525,4287.9,4287.8,0.001]
[1754792524063,27.27938475,4287.9,4287.8,0.001]
[1754792524390,27.69189216,4287.9,4287.8,0.001]
[1754792524554,27.68397649,4287.9,4287.8,0.001]
[1754792525163,27.06420326,4287.9,4287.8,0.001]
[1754792525683,14.48565279,4287.9,4287.8,0.001]
[1754792525884,18.36595696,4287.9,4287.8,0.001]
[1754792526179,17.70165279,4287.9,4287.8,0.001]
[1754792526476,17.75525356,4287.9,4287.8,0.001]
[1754792527978,18.22705356,4287.9,4287.8,0.001]
[1754792528366,18.57385356,4287.9,4287.8,0.001]
[1754792528578,19.06947483,4287.9,4287.8,0.001]
[1754792529357,15.30347483,4287.9,4287.8,0.001]
[1754792529557,19.06847483,4287.9,4287.8,0.001]
[1754792530774,18.24987483,4287.9,4287.8,0.001]
[1754792531689,14.48487483,4287.9,4287.8,0.001]
[1754792531982,18.24787483,4287.9,4287.8,0.001]
[1754792532195,18.71967483,4287.9,4287.8,0.001]
[1754792532357,15.30347483,4287.9,4287.8,0.001]
[1754792532684,18.71967483,4287.9,4287.8,0.001]
[1754792533492,19.06647483,4287.9,4287.8,0.001]
[1754792534269,18.24787483,4287.9,4287.8,0.001]
[1754792534669,14.48487483,4287.9,4287.8,0.001]
[1754792534969,18.24787483,4287.9,4287.8,0.001]
[1754792535767,18.24587483,4287.9,4287.8,0.001]
[1754792535967,14.48487483,4287.9,4287.8,0.001]
[1754792536277,18.24587483,4287.9,4287.8,0.001]
[1754792538399,13.93487483,4287.9,4287.8,0.4681]
[1754792538695,13.41427461,4287.9,4287.8,0.945]
[1754792539194,16.96427461,4287.9,4287.8,0.945]
[1754792539497,13.96427461,4287.9,4287.8,0.945]
[1754792539702,16.96427461,4287.9,4287.8,0.945]
[1754792541200,16.78894393,4287.9,4287.8,0.945]
[1754792543012,16.78894393,4287.9,4287.8,0.4681]
[1754792543195,19.10598461,4287.9,4287.8,0.4681]
[1754792543602,19.10298461,4287.9,4287.8,0.001]
[1754792544236,20.39761606,4287.9,4287.8,0.001]
[1754792544522,20.05081606,4287.9,4287.8,0.001]
[1754792544737,16.29381606,4287.9,4287.8,0.001]
[1754792545209,20.05081606,4287.9,4287.8,0.001]
[1754792545788,20.04981606,4287.9,4287.8,0.001]
[1754792546581,19.59861606,4287.9,4287.8,0.001]
[1754792547207,15.84261606,4287.9,4287.8,0.001]
[1754792547515,19.59761606,4287.9,4287.8,0.001]
[1754792548814,19.77210691,4287.9,4287.8,0.001]
[1754792549002,16.01710691,4287.9,4287.8,0.001]
[1754792549198,19.77210691,4287.9,4287.8,0.001]
[1754792549417,19.77110691,4287.9,4287.8,0.001]
[1754792550944,19.88448573,4287.9,4287.8,0.001]
[1754792551120,20.33568573,4287.9,4287.8,0.001]
[1754792552614,22.88448573,4287.9,4287.8,0.001]
[1754792552815,23.33568573,4287.9,4287.8,0.001]
[1754792553222,22.88448573,4287.9,4287.8,0.001]
[1754792554316,22.88248573,4287.9,4287.8,0.001]
[1754792557321,22.88148573,4287.9,4287.8,0.001]
[1754792558630,19.13048573,4287.9,4287.8,0.001]
[1754792558796,22.88048573,4287.9,4287.8,0.001]
[1754792559752,19.13048573,4287.9,4287.8,0.001]
[1754792559929,22.87948573,4287.9,4287.8,0.001]
[1754792561607,19.13048573,4287.9,4287.8,0.001]
[1754792561810,22.32848573,4287.9,4287.8,0.945]
[1754792562042,19.40143478,4287.9,4287.8,0.945]
[1754792562335,16.40143478,4287.9,4287.8,0.945]
[1754792562534,19.40143478,4287.9,4287.8,0.945]
[1754792562739,16.40143478,4287.9,4287.8,0.945]
[1754792563110,16.95043478,4287.9,4287.8,0.945]
[1754792563305,16.77594393,4287.9,4287.8,0.945]
[1754792563907,9.74594393,4287.9,4287.8,0.945]
[1754792567408,6.74594393,4287.9,4287.8,0.945]
[1754792568233,3.8618,4287.9,4287.8,0.945]
[1754792569432,6.2056416,4287.9,4287.8,0.945]
[1754792569629,6.74394393,4287.9,4287.8,0.475]
[1754792570040,6.74394393,4287.9,4287.8,0.9728]
[1754792572339,3.8598,4287.9,4287.8,0.9728]
[1754792572732,6.19194393,4287.9,4287.8,0.9728]
[1754792575248,3.8598,4287.9,4287.8,0.9728]
[1754792576245,6.18994393,4287.9,4287.8,0.9728]
[1754792576414,2.44894393,4287.9,4287.8,0.9728]
[1754792576619,6.18894393,4287.9,4287.8,0.9728]
[1754792577029,6.18794393,4287.9,4287.8,0.9728]
[1754792579127,6.18794393,4287.9,4287.8,0.001]
[1754792579657,6.18794393,4287.9,4287.8,0.475]
[1754792580427,0.1168,4287.9,4287.8,0.9728]
[1754792580628,0.002,4288.6,4287.8,0.9728]
[1754792580997,0.002,4288.6,4288.3,2.33190867]
[1754792581139,3.737,4288.5,4288.4,2.56506289]
[1754792581331,3.737,4288.5,4288.4,3.53686289]
[1754792581526,3.737,4288.5,4288.4,3.65366289]
[1754792582262,0.002,4288.6,4288.4,1.32179087]
[1754792582451,3.737,4288.5,4288.4,0.1168]
[1754792582653,3.737,4288.5,4288.2,0.1168]
[1754792582962,0.002,4289.1,4289.0,2.33154581]
[1754792583138,0.002,4290.0,4289.4,2.33132839]
[1754792583338,3.736,4289.7,4289.1,0.9718]
[1754792583539,3.736,4289.7,4289.1,3.30327617]
[1754792583864,3.736,4289.4,4289.2,1.30212762]
[1754792584064,3.736,4289.4,4289.2,0.33032762]
[1754792584243,3.736,4289.4,4288.4,11.69301547]
[1754792584244,3.736,4289.4,4289.3,0.9718]
[1754792584968,3.736,4289.4,4289.3,0.474]
[1754792585464,3.736,4289.4,4289.3,0.9718]
[1754792586876,6.06737908,4289.4,4288.9,0.4978]
[1754792587066,6.06737908,4289.4,4289.3,0.474]
[1754792587466,7.57605756,4289.4,4288.1,0.700116]
[1754792587653,4.05649767,4289.3,4288.3,0.474]
[1754792587852,0.55,4289.1,4288.3,0.474]
[1754792588052,2.33187202,4288.4,4288.3,0.474]
[1754792588258,2.33192962,4288.3,4288.0,0.474]
[1754792588581,3.733,4288.4,4288.1,0.474]
[1754792589055,6.06487403,4288.4,4288.1,0.474]
[1754792589683,6.06487403,4288.4,4288.2,0.474]
[1754792590260,6.06487403,4288.4,4287.8,0.001]
[1754792590459,2.33193273,4288.3,4287.9,0.474]
[1754792590776,6.06490386,4288.4,4287.8,0.001]
[1754792590985,0.01169767,4288.2,4287.8,0.001]
[1754792591146,3.732,4288.1,4287.8,0.001]
[1754792591472,2.33224828,4287.8,4287.4,0.001]
[1754792591645,3.731,4287.7,4287.4,0.001]
[1754792591975,6.06325272,4287.7,4287.4,0.001]
[1754792592995,6.18005272,4287.7,4287.4,0.001]
[1754792597107,6.67485272,4287.7,4287.4,0.001]
[1754792597408,7.57555363,4287.7,4287.4,0.001]
[1754792599072,8.12555363,4287.7,4287.4,0.001]
[1754792599610,11.47435363,4287.7,4287.4,0.001]
[1754792601296,19.4673041,4287.7,4287.4,0.001]
[1754792602900,19.4673041,4287.7,4287.6,0.041]
[1754792605475,26.1485041,4287.7,4287.6,0.041]
[1754792605694,26.1435041,4287.7,4287.6,0.041]
[1754792605917,14.10575363,4287.7,4287.6,0.041]
[1754792606071,13.20505272,4287.7,4287.6,0.9597]
[1754792606501,13.20505272,4287.7,4287.6,0.4998]
[1754792606718,13.20505272,4287.7,4287.6,0.041]
[1754792606914,13.20505272,4287.7,4282.5,3.81804101]
[1754792606915,4.79303012,4282.6,4282.5,3.81804101]
[1754792607116,4.79303012,4282.6,4279.7,0.004]
[1754792607117,2.22949629,4280.3,4279.7,0.004]
[1754792607410,23.13906455,4280.2,4279.7,0.004]
[1754792607609,23.13906455,4280.2,4279.0,0.76509049]
[1754792607610,2.33694001,4279.1,4279.0,0.76509049]
[1754792607784,2.88715848,4278.7,4278.6,0.04]
[1754792607986,5.88715848,4278.7,4278.6,0.04]
[1754792608187,17.66629517,4278.7,4278.6,1e-08]
[1754792608501,2.33770484,4277.7,4277.4,0.4588]
[1754792608696,10.22859159,4277.7,4276.6,0.4999]
[1754792608896,20.23814609,4277.7,4277.6,1e-08]
[1754792609097,2.88825145,4276.7,4276.6,1e-08]
[1754792609397,10.99261571,4276.7,4276.6,1e-08]
[1754792609581,20.2406927,4276.7,4276.6,0.45880001]
[1754792609983,20.2406927,4276.7,4276.6,1e-08]
[1754792610590,18.5730012,4276.7,4276.6,1e-08]
[1754792610792,22.9720012,4276.7,4276.6,0.45880001]
[1754792611043,22.9720012,4276.7,4276.6,1e-08]
[1754792611404,20.2366927,4276.7,4276.6,1e-08]
[1754792612430,12.2876927,4276.7,4276.6,0.91870001]
[1754792612580,12.8376927,4276.7,4276.6,0.91870001]
[1754792612785,2.79776801,4276.7,4276.6,0.91870001]
[1754792612987,2.32276801,4276.7,4276.6,0.91870001]
[1754792613302,2.33807003,4277.1,4276.6,0.91870001]
[1754792613499,1.99567098,4276.8,4276.7,0.9187]
[1754792613728,1.99567098,4276.9,4275.6,0.04]
[1754792614028,1.19747872,4275.7,4275.6,2.37881211]
[1754792614230,1.19747872,4276.1,4275.8,2.33874362]
[1754792614385,1.19747872,4276.1,4275.9,3.23787436]
[1754792614586,0.79764219,4276.1,4275.9,0.23787436]
[1754792614781,0.79764219,4276.1,4275.9,2.3386583]
[1754792614987,0.79764219,4276.3,4276.1,2.33857954]
[1754792615185,0.5983366,4276.5,4276.3,2.33847017]
[1754792615610,0.5983366,4276.9,4276.2,3.0]
[1754792615941,0.5983366,4276.9,4276.3,0.4588]
[1754792616147,0.5983366,4276.7,4276.4,0.34588]
[1754792616528,0.5983366,4276.7,4276.5,0.4588]
[1754792616834,2.33841389,4276.5,4276.1,0.4588]
[1754792616994,0.59772116,4276.2,4275.7,0.001]
[1754792617389,0.59772116,4276.2,4276.1,0.1168]
[1754792617631,0.59772116,4276.4,4276.1,0.5756]
[1754792617929,0.59772116,4276.4,4276.2,0.4588]
[1754792618289,0.59772116,4276.4,4276.3,0.4588]
[1754792618728,0.59772116,4276.5,4276.3,0.4588]
[1754792618937,0.59772116,4276.6,4276.4,3.4599]
[1754792619134,1.19747872,4278.0,4277.1,2.33797942]
[1754792619421,1.5965473,4278.6,4277.1,2.33797942]
[1754792619422,1.19747872,4278.6,4277.1,3.0]
[1754792619600,0.04,4278.9,4277.9,2.45435944]
[1754792619815,2.33711027,4278.8,4278.5,0.1168]
[1754792620004,2.37705974,4278.9,4278.5,0.1168]
[1754792620201,0.04,4278.9,4278.5,0.1168]
[1754792620614,0.04,4278.9,4278.8,0.1168]
[1754792621104,0.04,4278.9,4277.3,2.33790341]
[1754792621293,0.55,4278.7,4277.4,0.23379034]
[1754792621493,0.55,4278.7,4276.9,2.33813782]
[1754792621689,0.4704,4278.9,4276.6,5.33830613]
[1754792621690,0.55,4278.5,4276.7,2.3382113]
[1754792621928,2.33771348,4277.7,4276.7,2.3382113]
[1754792622097,2.33765691,4277.8,4276.8,2.33819655]
[1754792622302,4.375,4278.3,4276.6,2.33826734]
[1754792622626,2.33774994,4277.7,4276.7,0.57105846]
[1754792622924,0.01169767,4278.2,4276.7,0.57105846]
[1754792623125,2.33792783,4277.3,4276.7,0.57105846]
[1754792623294,2.33786057,4277.5,4276.7,0.57105846]
[1754792623495,0.4304,4278.2,4275.8,4.363]
[1754792623496,0.55,4277.9,4275.8,4.363]
[1754792623829,0.55,4277.9,4276.3,3.0]
[1754792624123,2.33765019,4277.8,4276.3,3.0]
[1754792624327,2.33809677,4277.0,4276.3,3.0]
[1754792624530,2.33770484,4277.7,4276.3,3.0]
[1754792624703,0.47924339,4277.6,4276.4,0.8609]
[1754792624907,2.33809509,4277.0,4276.6,0.001]
[1754792625228,0.47958494,4276.9,4276.6,0.001]
[1754792625438,2.33814872,4276.9,4276.6,0.001]
[1754792625736,2.33807946,4277.1,4276.6,0.001]
[1754792625894,0.47942633,4277.0,4276.6,0.33687948]
[1754792626099,0.002,4277.7,4276.7,2.33819727]
[1754792626302,0.47990118,4277.6,4276.7,2.33819727]
[1754792626525,0.47990118,4277.5,4276.7,2.33819727]
[1754792626742,0.47990118,4277.4,4276.6,0.33687948]
[1754792626925,0.47990118,4277.3,4276.7,2.6057653]
[1754792627245,0.48041123,4277.2,4276.7,0.26752163]
[1754792627445,2.33787534,4277.4,4276.6,0.33687948]
[1754792627609,0.48043031,4277.3,4276.7,2.33824312]
[1754792627812,0.48043031,4277.2,4276.7,2.33824312]
[1754792628008,2.33970824,4277.7,4276.8,2.33819273]
[1754792628196,2.81825755,4277.6,4276.6,0.33687948]
[1754792628408,0.48049806,4277.5,4276.7,2.33823741]
[1754792628744,0.48049806,4277.4,4276.8,0.26751169]
[1754792628928,0.48049806,4277.3,4276.8,0.26751169]
[1754792629128,0.48049806,4277.2,4276.6,0.33687948]
[1754792629438,0.48049806,4277.1,4276.7,3.0]
[1754792629633,2.33970926,4277.7,4276.7,5.33824062]
[1754792629843,0.48199509,4277.6,4276.7,3.0]
[1754792630050,0.48199509,4277.5,4276.8,2.33814689]
[1754792630220,0.48199509,4277.4,4276.9,0.56750264]
[1754792630421,0.48199509,4277.3,4276.9,0.56750264]
[1754792630620,0.48199509,4277.2,4276.6,0.001]
[1754792630847,0.002,4277.7,4276.6,0.001]
[1754792630848,0.48199509,4277.1,4276.6,0.001]
[1754792631058,0.48199509,4277.0,4276.6,2.33930587]
[1754792631345,0.48199509,4276.9,4276.6,2.33930587]
[1754792631551,0.48199509,4276.8,4276.6,0.001]
[1754792631745,2.33781128,4277.6,4277.5,0.1168]
[1754792631933,0.93232088,4277.6,4276.6,0.53494119]
[1754792632134,2.82153502,4277.5,4276.7,3.0]
[1754792632334,0.48372088,4277.4,4276.7,2.33823707]
[1754792632535,0.48372088,4277.3,4276.7,0.52115839]
[1754792632748,0.48372088,4277.2,4276.7,0.52115839]
[1754792632952,0.48372088,4277.1,4276.7,0.52115839]
[1754792633121,0.48372088,4277.0,4276.6,2.33930079]
[1754792633321,0.48372088,4276.9,4276.6,2.33930079]
[1754792633647,0.48372088,4276.8,4276.7,2.33825145]
[1754792634027,0.48372088,4276.8,4276.7,2.45505145]
[1754792634746,0.48372088,4276.8,4276.7,5.45505145]
[1754792635450,0.48372088,4276.8,4276.6,0.001]
[1754792635649,0.48372088,4276.7,4276.6,0.001]
[1754792636150,0.48372088,4276.7,4276.6,2.33930613]
[1754792636339,0.61199455,4276.7,4276.6,2.33830613]
[1754792636924,0.48372088,4276.7,4276.6,2.33830613]
[1754792637126,2.82705784,4276.7,4275.8,0.001]
[1754792637343,1.23370437,4276.1,4275.8,0.001]
[1754792637545,0.48372088,4276.0,4275.8,0.001]
[1754792637756,0.48372088,4275.9,4275.8,0.001]
[1754792638128,0.93232088,4275.9,4275.8,0.001]
[1754792638958,0.48372088,4275.9,4275.8,0.001]
[1754792640934,0.49347118,4275.9,4275.8,0.001]
[1754792642147,0.49347118,4275.9,4275.8,2.33974362]
[1754792642352,0.49347118,4275.9,4275.8,5.81170132]
[1754792642775,3.57174691,4277.1,4275.8,2.81170132]
[1754792643079,0.00562435,4276.8,4275.8,0.001]
[1754792643236,3.28101295,4276.7,4275.8,0.001]
[1754792643442,5.26934346,4276.6,4275.8,0.001]
[1754792643675,0.49411911,4276.5,4275.8,0.001]
[1754792643875,0.49974346,4276.4,4275.8,0.001]
[1754792644075,0.49411911,4276.3,4275.8,0.001]
[1754792644251,0.49974346,4276.2,4275.8,0.001]
[1754792644578,1.42151911,4276.1,4275.8,0.001]
[1754792644741,0.49974346,4276.0,4275.8,0.001]
[1754792644940,0.49411911,4275.9,4275.8,0.001]
[1754792645149,0.00462435,4275.8,4275.7,2.33979806]
[1754792645778,2.457,4275.5,4271.6,1e-08]
[1754792645992,2.34197884,4269.9,4268.1,4.18712921]
[1754792646285,2.34241223,4269.2,4268.6,0.04]
[1754792646445,7.22018136,4268.9,4268.6,0.04]
[1754792646643,11.83080276,4268.9,4268.6,0.04]
[1754792646860,0.1,4266.7,4265.6,0.04]
[1754792647064,3.27414472,4266.7,4265.6,0.04]
[1754792647259,6.27414472,4266.7,4265.6,0.04]
[1754792647472,6.27414472,4266.7,4266.6,1e-08]
[1754792647777,11.44180939,4266.7,4266.6,1e-08]
[1754792647976,12.86860856,4266.7,4266.6,1e-08]
[1754792648177,6.69537274,4266.7,4266.6,1e-08]
[1754792648477,0.65,4265.1,4265.0,7.99000001]
[1754792648776,0.1,4265.1,4265.0,7.99000001]
[1754792648942,0.0316079,4265.1,4265.0,7.99000001]
[1754792649146,0.17724564,4266.8,4265.0,8.93530001]
[1754792649342,0.20947931,4267.5,4266.1,2.34401439]
[1754792649575,0.01169767,4267.4,4265.5,0.4726]
[1754792649775,4.982,4267.8,4265.8,0.4726]
[1754792649976,9.30789187,4269.8,4266.0,3.0]
[1754792649977,0.80609643,4269.7,4266.0,3.0]
[1754792650153,5.003,4268.5,4266.3,0.55]
[1754792650358,0.04,4269.9,4267.5,2.34328761]
[1754792650583,0.2289798,4269.9,4267.7,2.34318251]
[1754792650878,0.04,4268.9,4267.6,2.34323741]
[1754792651046,0.04,4268.9,4268.1,2.34294205]
[1754792651246,0.04,4268.9,4267.9,2.34306492]
[1754792651466,0.04,4268.9,4267.5,0.4726]
[1754792651667,0.04,4268.9,4268.2,2.34286609]
[1754792651980,3.0,4268.7,4266.6,0.4726]
[1754792652147,0.55,4268.1,4266.6,0.4726]
[1754792652468,0.12,4268.2,4268.0,2.3429719]
[1754792652668,0.04,4268.9,4268.1,0.9453]
[1754792652866,0.04,4268.9,4268.4,2.34279823]
[1754792653045,0.04,4268.9,4268.7,2.34259335]
[1754792653252,0.04,4268.9,4268.7,2.36601968]
[1754792653452,0.04,4268.9,4268.8,0.9453]
[1754792654164,0.04,4268.9,4267.9,2.81563364]
[1754792654368,0.05169767,4268.9,4267.9,0.4726]
[1754792654550,0.05169767,4268.9,4268.0,0.28157605]
[1754792654750,0.05169767,4268.9,4268.1,2.34294864]
[1754792654952,0.05169767,4268.9,4267.9,2.34305302]
[1754792655146,0.04,4268.9,4268.6,2.34265951]
[1754792655351,0.04,4268.9,4268.6,2.34264236]
[1754792655579,0.04,4268.9,4268.7,2.34260706]
[1754792655781,0.04,4268.9,4268.8,0.4726]
[1754792656114,0.703389,4269.8,4268.8,1.17956071]
[1754792656383,0.04,4269.9,4268.9,2.34252383]
[1754792656560,0.1168,4269.5,4268.9,2.4593099]
[1754792656762,0.1168,4269.5,4268.9,0.43341706]
[1754792656964,0.04,4269.9,4269.1,3.0]
[1754792657152,0.1599,4272.6,4269.8,0.1168]
[1754792657153,0.1168,4270.7,4269.8,0.1168]
[1754792657353,0.174572,4271.0,4269.9,0.46631975]
[1754792657686,0.1168,4271.5,4270.7,2.3414824]
[1754792657984,0.1168,4271.5,4270.8,0.8981]
[1754792658281,0.55,4271.1,4269.9,0.8981]
[1754792658479,2.45792255,4271.5,4270.4,2.34168133]
[1754792658653,2.34116465,4271.4,4270.2,2.34176352]
[1754792658853,2.34116465,4271.4,4270.0,2.34192037]
[1754792658854,2.34116465,4271.4,4270.3,2.34174615]
[1754792659169,0.12849767,4271.5,4270.2,2.3417609]
[1754792659373,0.1168,4271.5,4270.7,2.34150843]
[1754792659885,0.1168,4271.5,4270.8,2.34148168]
[1754792660456,0.1168,4271.5,4270.8,2.78438168]
[1754792660658,0.1168,4271.5,4270.8,3.23958168]
[1754792660871,0.04,4271.9,4270.8,3.23958168]
[1754792661102,0.1168,4271.6,4270.8,3.23958168]
[1754792661972,0.04,4271.9,4270.8,3.26299649]
[1754792662159,0.04,4271.9,4270.8,3.23958168]
[1754792662482,0.04,4271.9,4270.8,4.29079738]
[1754792663187,0.04,4271.9,4270.8,3.26299649]
[1754792663689,0.04,4271.9,4270.9,2.34142686]
[1754792663867,0.04,4271.9,4271.3,2.34118538]
[1754792664067,0.04,4271.9,4271.8,2.34093356]
[1754792664594,0.04,4271.9,4271.8,6.26244289]
[1754792664794,0.04,4271.9,4271.8,6.23903356]
[1754792667180,0.04,4272.9,4272.8,2.34038569]
[1754792667390,0.04,4272.9,4272.8,2.45718569]
[1754792667572,0.04,4272.9,4272.8,2.90008569]
[1754792668385,0.04,4272.9,4272.8,3.35528569]
[1754792668604,0.04,4272.9,4272.8,6.81040218]
[1754792669803,0.042,4272.9,4272.8,6.81040218]
[1754792670797,0.042,4272.9,4272.8,2.34038569]
[1754792671382,0.042,4272.9,4272.8,2.78328569]
[1754792672284,0.042,4272.9,4272.8,11.07148569]
[1754792677322,0.042,4272.9,4272.8,11.02948569]
[1754792678396,0.042,4272.9,4272.8,10.56328569]
[1754792678715,0.042,4272.9,4272.8,10.68008569]
[1754792678921,0.002,4273.8,4273.7,2.33989283]
[1754792679078,0.002,4273.8,4273.7,10.11589283]
[1754792679283,0.002,4273.8,4273.7,11.13079283]
[1754792682420,0.002,4273.8,4273.7,5.45669283]
[1754792683132,0.002,4273.8,4273.7,5.89959283]
[1754792683333,0.002,4273.8,4273.7,6.35479283]
[1754792683494,0.002,4273.8,4273.7,5.89959283]
[1754792684198,0.002,4273.8,4273.7,5.45669283]
[1754792684990,0.002,4273.8,4273.7,5.89959283]
[1754792685437,0.002,4273.8,4273.7,6.35479283]
[1754792692706,0.002,4273.8,4273.7,5.89959283]
[1754792693113,0.002,4273.8,4273.7,6.36589283]
[1754792693329,0.04,4274.9,4274.4,3.0]
[1754792693540,0.04,4274.9,4274.8,2.33929072]
[1754792693704,0.04,4274.9,4274.8,10.11009072]
[1754792694207,0.04,4274.9,4274.8,10.55179072]
[1754792694609,0.04,4274.9,4274.8,11.01809072]
[1754792695306,0.00462435,4275.8,4275.7,2.33879832]
[1754792695497,0.00462435,4275.8,4275.7,10.09759832]
[1754792696323,0.00462435,4275.8,4275.7,10.53929832]
[1754792696524,0.00462435,4275.8,4275.7,10.09759832]
[1754792696903,0.00462435,4275.8,4275.7,3.0]
[1754792697104,0.00662435,4275.8,4275.7,5.33879832]
[1754792700128,0.00662435,4275.8,4275.7,9.95979832]
[1754792701820,0.00662435,4275.8,4275.7,5.33879832]
[1754792702919,0.00662435,4275.8,4275.7,5.78049832]
[1754792703120,0.00662435,4275.8,4275.7,6.24679832]
[1754792705331,0.00662435,4275.8,4275.7,5.33879832]
[1754792705537,0.00662435,4275.8,4275.7,9.90779832]
[1754792706249,0.00662435,4275.8,4275.7,5.33879832]
[1754792706544,0.00662435,4275.8,4275.7,9.90279832]
[1754792706934,0.00662435,4275.8,4275.7,10.01959832]
[1754792707441,0.00662435,4275.8,4275.7,3.1168]
[1754792707641,0.00662435,4275.8,4275.7,5.45559832]
[1754792710214,0.00662435,4275.8,4275.7,6.36359832]
[1754792712321,0.002,4276.2,4275.8,5.33874362]
[1754792712515,0.002,4276.2,4275.8,18.94796744]
[1754792714231,0.002,4276.2,4276.1,2.33857954]
[1754792714451,0.002,4276.2,4276.1,9.98276533]
[1754792714750,0.002,4276.2,4276.1,10.86737954]
[1754792716344,0.04,4276.9,4276.8,2.33819678]
[1754792716532,0.04,4276.9,4276.8,9.82819678]
[1754792716734,0.04,4276.9,4276.8,5.33819678]
[1754792716936,0.04,4276.9,4276.8,9.82719678]
[1754792717154,0.04,4276.9,4276.8,9.94399678]
[1754792718358,0.04,4276.9,4276.8,2.45499678]
[1754792718653,0.2813,4276.9,4276.8,0.1168]
[1754792719630,0.04,4276.9,4276.8,0.1168]
[1754792719838,0.04,4276.9,4276.8,2.45499678]
[1754792720451,0.04,4276.9,4276.8,6.92099678]
[1754792720662,0.04,4276.9,4276.8,8.29402546]
[1754792720849,0.04,4276.9,4276.8,6.92099678]
[1754792721164,0.04,4276.9,4276.8,10.36809678]
[1754792721364,0.04,4276.9,4276.8,10.82059678]
[1754792721528,0.04,4276.9,4276.8,10.70379678]
[1754792721728,0.04,4276.9,4276.8,10.82059678]
[1754792722958,0.04,4276.9,4276.8,11.25379678]
[1754792723164,0.04,4276.9,4276.8,11.37059678]
[1754792723462,0.04,4276.9,4276.8,10.35109678]
[1754792723632,0.04,4276.9,4276.8,11.35359678]